[Event "*** Titled Tuesday Blitz"]
[Site "Chess.com"]
[Date "2021.04.27"]
[Round "6"]
[White "elextranjero00"]
[Black "German_Bazeev"]
[Result "1-0"]
[WhiteElo "2595"]
[BlackElo "2775"]
[TimeControl "180+1"]
[EndTime "11:07:27 PDT"]
[Termination "elextranjero00 won by resignation"]

1. e4 {[%clk 0:03:00.9]} 1... c6 {[%clk 0:02:59.6]} 2. Nf3 {[%clk 0:02:59.5]}
2... d5 {[%clk 0:03:00.5]} 3. d3 {[%clk 0:02:59.7]} 3... g6 {[%clk 0:03:00.6]}
4. Nbd2 {[%clk 0:02:58.3]} 4... Bg7 {[%clk 0:03:01.1]} 5. d4 {[%clk 0:02:59]}
5... dxe4 {[%clk 0:03:00]} 6. Nxe4 {[%clk 0:02:59.9]} 6... Nf6 {[%clk
0:03:00.8]} 7. Nxf6+ {[%clk 0:03:00]} 7... exf6 {[%clk 0:03:01.3]} 8. Bc4 {[%clk
0:02:59]} 8... O-O {[%clk 0:03:00.9]} 9. O-O {[%clk 0:02:58.6]} 9... Nd7 {[%clk
0:03:00.4]} 10. h3 {[%clk 0:02:54]} 10... Nb6 {[%clk 0:03:00.3]} 11. Bb3 {[%clk
0:02:54.2]} 11... Re8 {[%clk 0:02:57.9]} 12. Re1 {[%clk 0:02:46.8]} 12... Rxe1+
{[%clk 0:02:56.4]} 13. Qxe1 {[%clk 0:02:46.6]} 13... Bf5 {[%clk 0:02:46.3]} 14.
Qa5 {[%clk 0:02:32.4]} 14... Nd5 {[%clk 0:02:41.4]} 15. Qxd8+ {[%clk 0:02:30.1]}
15... Rxd8 {[%clk 0:02:42.3]} 16. c3 {[%clk 0:02:29]} 16... Re8 {[%clk
0:02:34.3]} 17. Bd2 {[%clk 0:02:26]} 17... Be4 {[%clk 0:02:13.5]} 18. Re1 {[%clk
0:02:23.4]} 18... Re6 {[%clk 0:02:12.9]} 19. Bd1 {[%clk 0:02:20.3]} 19... Nb6
{[%clk 0:02:03.8]} 20. Bc1 {[%clk 0:01:47.1]} 20... Bd5 {[%clk 0:01:56.1]} 21.
Rxe6 {[%clk 0:01:41.1]} 21... fxe6 {[%clk 0:01:55.4]} 22. b3 {[%clk 0:01:16.8]}
22... Kf7 {[%clk 0:01:49.4]} 23. Nd2 {[%clk 0:01:12.1]} 23... Bh6 {[%clk
0:01:33.1]} 24. c4 {[%clk 0:01:04.9]} 24... Bxd2 {[%clk 0:01:33.1]} 25. Bxd2
{[%clk 0:01:04.8]} 25... Be4 {[%clk 0:01:33.8]} 26. Bc3 {[%clk 0:00:54.7]} 26...
Bb1 {[%clk 0:01:29.8]} 27. a4 {[%clk 0:00:54.2]} 27... Nd7 {[%clk 0:01:28.7]}
28. f3 {[%clk 0:00:48.2]} 28... g5 {[%clk 0:01:27.6]} 29. Kf2 {[%clk 0:00:48.2]}
29... h5 {[%clk 0:01:28.2]} 30. Ke3 {[%clk 0:00:47.7]} 30... h4 {[%clk
0:01:28.2]} 31. a5 {[%clk 0:00:44.2]} 31... Nf8 {[%clk 0:01:24.6]} 32. Bd2
{[%clk 0:00:23.9]} 32... Ng6 {[%clk 0:01:22.9]} 33. Kf2 {[%clk 0:00:23.7]} 33...
Nf4 {[%clk 0:01:11.6]} 34. Bxf4 {[%clk 0:00:20.6]} 34... gxf4 {[%clk 0:01:12.5]}
35. b4 {[%clk 0:00:20.8]} 35... Bd3 {[%clk 0:00:56.4]} 36. Be2 {[%clk
0:00:20.7]} 36... Bc2 {[%clk 0:00:55.9]} 37. Ke1 {[%clk 0:00:20.7]} 37... e5
{[%clk 0:00:54]} 38. Kd2 {[%clk 0:00:20.2]} 38... Bf5 {[%clk 0:00:54.2]} 39. Kc3
{[%clk 0:00:20.4]} 39... Ke6 {[%clk 0:00:53.9]} 40. Bd3 {[%clk 0:00:19.1]} 40...
Bxd3 {[%clk 0:00:43.5]} 41. Kxd3 {[%clk 0:00:20]} 41... Kf5 {[%clk 0:00:42.6]}
42. d5 {[%clk 0:00:16.9]} 42... cxd5 {[%clk 0:00:25.8]} 43. cxd5 {[%clk
0:00:17]} 43... Kg6 {[%clk 0:00:25.8]} 44. Ke4 {[%clk 0:00:13.1]} 44... Kf7
{[%clk 0:00:26.3]} 45. Kf5 {[%clk 0:00:07]} 45... Ke7 {[%clk 0:00:26.5]} 46. b5
{[%clk 0:00:05.4]} 46... a6 {[%clk 0:00:17.9]} 47. bxa6 {[%clk 0:00:04.9]} 47...
bxa6 {[%clk 0:00:18.8]} 48. Kg6 {[%clk 0:00:04.7]} 48... Kd6 {[%clk 0:00:19.3]}
49. Kxf6 {[%clk 0:00:05.1]} 49... Kxd5 {[%clk 0:00:20.2]} 50. Kf5 {[%clk
0:00:05.8]} 50... Kd4 {[%clk 0:00:20.7]} 51. Kf6 {[%clk 0:00:05.7]} 51... e4
{[%clk 0:00:19]} 52. fxe4 {[%clk 0:00:05.7]} 52... Kxe4 {[%clk 0:00:19.9]} 53.
Kg5 {[%clk 0:00:06.2]} 53... f3 {[%clk 0:00:17.8]} 54. gxf3+ {[%clk 0:00:06.1]}
54... Kxf3 {[%clk 0:00:18.7]} 55. Kxh4 {[%clk 0:00:06.5]} 55... Kf4 {[%clk
0:00:19.6]} 56. Kh5 {[%clk 0:00:07.1]} 56... Kf5 {[%clk 0:00:19.9]} 57. h4
{[%clk 0:00:07.2]} 57... Kf6 {[%clk 0:00:20.4]} 58. Kg4 {[%clk 0:00:07.4]} 58...
Kg6 {[%clk 0:00:20.9]} 59. Kf4 {[%clk 0:00:08.1]} 59... Kh5 {[%clk 0:00:21.4]}
60. Ke5 {[%clk 0:00:09]} 60... Kxh4 {[%clk 0:00:22.1]} 61. Kd6 {[%clk
0:00:09.9]} 61... Kg5 {[%clk 0:00:22.8]} 62. Kc6 {[%clk 0:00:10.8]} 62... Kf6
{[%clk 0:00:23.5]} 63. Kb6 {[%clk 0:00:11.4]} 63... Ke7 {[%clk 0:00:24.1]} 64.
Kxa6 {[%clk 0:00:12]} 64... Kd7 {[%clk 0:00:24.7]} 65. Kb7 {[%clk 0:00:12.9]}
1-0

[Event "*** Titled Tuesday Blitz"]
[Site "Chess.com"]
[Date "2021.04.27"]
[Round "6"]
[White "shaheus"]
[Black "KubaGepard"]
[Result "1-0"]
[WhiteElo "2180"]
[BlackElo "2393"]
[TimeControl "180+1"]
[EndTime "11:07:27 PDT"]
[Termination "shaheus won by resignation"]

1. e4 {[%clk 0:03:00.9]} 1... e5 {[%clk 0:02:58.4]} 2. Nf3 {[%clk 0:03:00.9]}
2... Nc6 {[%clk 0:02:58.9]} 3. Bc4 {[%clk 0:03:00.4]} 3... Bc5 {[%clk
0:02:58.3]} 4. c3 {[%clk 0:03:00.1]} 4... Nf6 {[%clk 0:02:57.6]} 5. d4 {[%clk
0:02:59.2]} 5... exd4 {[%clk 0:02:55.7]} 6. cxd4 {[%clk 0:02:59.5]} 6... Bb4+
{[%clk 0:02:54.7]} 7. Nc3 {[%clk 0:02:59.8]} 7... Nxe4 {[%clk 0:02:51.9]} 8. O-O
{[%clk 0:02:59.4]} 8... Bxc3 {[%clk 0:02:51.8]} 9. bxc3 {[%clk 0:02:59.3]} 9...
d5 {[%clk 0:02:50.4]} 10. Qc2 {[%clk 0:02:59.4]} 10... O-O {[%clk 0:02:46.8]}
11. Bd3 {[%clk 0:02:59.3]} 11... Bf5 {[%clk 0:02:43.9]} 12. Rb1 {[%clk
0:02:58.6]} 12... Na5 {[%clk 0:02:35.2]} 13. Ng5 {[%clk 0:02:22.6]} 13... Re8
{[%clk 0:01:57]} 14. f3 {[%clk 0:02:16.7]} 14... Nxg5 {[%clk 0:01:56.8]} 15.
Bxf5 {[%clk 0:02:15.7]} 15... g6 {[%clk 0:01:55.9]} 16. Bd3 {[%clk 0:02:10.3]}
16... b6 {[%clk 0:01:51.7]} 17. Bf4 {[%clk 0:01:59.5]} 17... Ne6 {[%clk
0:01:50]} 18. Bg3 {[%clk 0:01:41.5]} 18... c6 {[%clk 0:01:36.3]} 19. Rfe1 {[%clk
0:01:41]} 19... Nb7 {[%clk 0:01:34.3]} 20. Re2 {[%clk 0:01:32.8]} 20... Nd6
{[%clk 0:01:33.9]} 21. Rbe1 {[%clk 0:01:32.5]} 21... Qd7 {[%clk 0:01:34.4]} 22.
Qd2 {[%clk 0:01:30.6]} 22... Ng7 {[%clk 0:01:33]} 23. Be5 {[%clk 0:01:16.7]}
23... Re6 {[%clk 0:01:26.5]} 24. Qh6 {[%clk 0:01:11.5]} 24... f6 {[%clk
0:01:19.5]} 25. Bxf6 {[%clk 0:00:55.2]} 25... Rxf6 {[%clk 0:00:38.9]} 26. Re7
{[%clk 0:00:54.1]} 26... Nf7 {[%clk 0:00:37.7]} 27. Qxg7+ {[%clk 0:00:35.6]}
27... Kxg7 {[%clk 0:00:35.9]} 28. Rxd7 {[%clk 0:00:36]} 28... Kf8 {[%clk
0:00:33.7]} 29. Ree7 {[%clk 0:00:33.2]} 29... a5 {[%clk 0:00:33.1]} 30. Rb7
{[%clk 0:00:31.3]} 30... b5 {[%clk 0:00:32]} 31. h4 {[%clk 0:00:27.2]} 31... Re8
{[%clk 0:00:28.8]} 32. Rxe8+ {[%clk 0:00:21.7]} 32... Kxe8 {[%clk 0:00:29.7]}
33. a4 {[%clk 0:00:20]} 33... bxa4 {[%clk 0:00:25.1]} 34. Ra7 {[%clk 0:00:20.1]}
34... Re6 {[%clk 0:00:25]} 35. Kf2 {[%clk 0:00:18.4]} 35... Nd6 {[%clk
0:00:18.9]} 36. Rxa5 {[%clk 0:00:17.8]} 36... Nc4 {[%clk 0:00:19.4]} 37. Bxc4
{[%clk 0:00:16.9]} 37... dxc4 {[%clk 0:00:19.3]} 38. Rxa4 {[%clk 0:00:17.2]}
38... Kd7 {[%clk 0:00:19.4]} 39. Rxc4 {[%clk 0:00:17.1]} 39... Kd6 {[%clk
0:00:20]} 40. Rc5 {[%clk 0:00:17.1]} 40... Re8 {[%clk 0:00:20.6]} 41. h5 {[%clk
0:00:17.1]} 41... Ra8 {[%clk 0:00:19.8]} 42. hxg6 {[%clk 0:00:17]} 42... hxg6
{[%clk 0:00:20.7]} 43. Rg5 {[%clk 0:00:16.8]} 43... Ra3 {[%clk 0:00:21]} 44.
Rxg6+ {[%clk 0:00:15.3]} 44... Kd7 {[%clk 0:00:21.3]} 45. c4 {[%clk 0:00:12.4]}
45... Ra4 {[%clk 0:00:20.7]} 46. d5 {[%clk 0:00:11.1]} 46... cxd5 {[%clk
0:00:20.7]} 47. cxd5 {[%clk 0:00:11.4]} 47... Rd4 {[%clk 0:00:21.3]} 48. Rg5
{[%clk 0:00:11.5]} 48... Kd6 {[%clk 0:00:20.6]} 49. Ke3 {[%clk 0:00:11.6]} 49...
Ra4 {[%clk 0:00:20.6]} 50. g4 {[%clk 0:00:11.7]} 50... Ra3+ {[%clk 0:00:21.1]}
51. Kf4 {[%clk 0:00:11.2]} 51... Ra8 {[%clk 0:00:22]} 52. Ke4 {[%clk 0:00:11]}
52... Re8+ {[%clk 0:00:21.9]} 53. Kd4 {[%clk 0:00:11.3]} 53... Re1 {[%clk
0:00:21.5]} 54. Rg6+ {[%clk 0:00:11.7]} 54... Kd7 {[%clk 0:00:21.6]} 55. f4
{[%clk 0:00:12]} 55... Ke7 {[%clk 0:00:21.1]} 56. Re6+ {[%clk 0:00:11.4]} 56...
Rxe6 {[%clk 0:00:20.5]} 57. dxe6 {[%clk 0:00:11.7]} 57... Kxe6 {[%clk
0:00:21.4]} 58. Ke4 {[%clk 0:00:12.1]} 58... Kf6 {[%clk 0:00:22.3]} 59. g5+
{[%clk 0:00:11.8]} 59... Kg6 {[%clk 0:00:22.7]} 60. Ke5 {[%clk 0:00:12.4]} 60...
Kf7 {[%clk 0:00:23]} 61. Kf5 {[%clk 0:00:12.7]} 61... Kg7 {[%clk 0:00:23.9]} 62.
g6 {[%clk 0:00:13.1]} 62... Kf8 {[%clk 0:00:23.3]} 63. Kf6 {[%clk 0:00:13.6]}
63... Kg8 {[%clk 0:00:22.4]} 64. g7 {[%clk 0:00:14.1]} 1-0

[Event "*** Titled Tuesday Blitz"]
[Site "Chess.com"]
[Date "2021.04.27"]
[Round "6"]
[White "davidkalashian"]
[Black "KIEV-1"]
[Result "1-0"]
[WhiteElo "2572"]
[BlackElo "2237"]
[TimeControl "180+1"]
[EndTime "11:07:30 PDT"]
[Termination "davidkalashian won by resignation"]

1. e4 {[%clk 0:02:56.8]} 1... c5 {[%clk 0:02:56]} 2. Nc3 {[%clk 0:02:56.4]} 2...
a6 {[%clk 0:02:55.8]} 3. Nf3 {[%clk 0:02:56.4]} 3... d6 {[%clk 0:02:56.3]} 4. d4
{[%clk 0:02:56.3]} 4... cxd4 {[%clk 0:02:56.1]} 5. Nxd4 {[%clk 0:02:57.2]} 5...
Nf6 {[%clk 0:02:56.6]} 6. h3 {[%clk 0:02:57.2]} 6... g6 {[%clk 0:02:53.6]} 7. g4
{[%clk 0:02:55.3]} 7... Bg7 {[%clk 0:02:54]} 8. Bg2 {[%clk 0:02:55.7]} 8... Nfd7
{[%clk 0:02:51.5]} 9. O-O {[%clk 0:02:54.6]} 9... Nc6 {[%clk 0:02:51.6]} 10. Be3
{[%clk 0:02:52.9]} 10... h5 {[%clk 0:02:38.4]} 11. g5 {[%clk 0:02:29.2]} 11...
Nde5 {[%clk 0:02:13.1]} 12. Nxc6 {[%clk 0:02:07]} 12... Nxc6 {[%clk 0:02:12.6]}
13. f4 {[%clk 0:02:04.9]} 13... O-O {[%clk 0:02:04.3]} 14. Kh1 {[%clk
0:01:57.1]} 14... Qa5 {[%clk 0:01:56.7]} 15. Nd5 {[%clk 0:01:52.5]} 15... Bxb2
{[%clk 0:01:47.2]} 16. Rb1 {[%clk 0:01:47.7]} 16... Bg7 {[%clk 0:01:46.6]} 17.
f5 {[%clk 0:01:38.6]} 17... Be5 {[%clk 0:01:42.1]} 18. Nb6 {[%clk 0:01:00.5]}
18... Rb8 {[%clk 0:01:38.3]} 19. Nc4 {[%clk 0:01:00]} 19... Qxa2 {[%clk
0:01:34]} 20. fxg6 {[%clk 0:00:39]} 20... fxg6 {[%clk 0:01:05.4]} 21. Qd5+
{[%clk 0:00:38.5]} 21... e6 {[%clk 0:00:59]} 22. Rxf8+ {[%clk 0:00:37.7]} 22...
Kxf8 {[%clk 0:00:58.8]} 23. Rf1+ {[%clk 0:00:38.2]} 23... Ke7 {[%clk 0:00:54.9]}
24. Rf7+ {[%clk 0:00:35.3]} 24... Kd8 {[%clk 0:00:35.2]} 25. Bb6+ {[%clk
0:00:34.4]} 25... Ke8 {[%clk 0:00:28.7]} 26. Nxd6+ {[%clk 0:00:33.7]} 26... Bxd6
{[%clk 0:00:29]} 27. Qxa2 {[%clk 0:00:34.1]} 27... Kxf7 {[%clk 0:00:29.4]} 28.
c4 {[%clk 0:00:33.1]} 28... Be5 {[%clk 0:00:23.8]} 29. Qd2 {[%clk 0:00:30.7]}
29... Ke7 {[%clk 0:00:23.1]} 30. Bc5+ {[%clk 0:00:29.3]} 30... Ke8 {[%clk
0:00:23.5]} 31. Bd6 {[%clk 0:00:29.2]} 31... Bxd6 {[%clk 0:00:23.9]} 32. Qxd6
{[%clk 0:00:30]} 32... Bd7 {[%clk 0:00:24.8]} 33. e5 {[%clk 0:00:23.7]} 33...
Rc8 {[%clk 0:00:25.1]} 34. Be4 {[%clk 0:00:23]} 34... Ne7 {[%clk 0:00:21]} 35.
Bxb7 {[%clk 0:00:21.1]} 35... Rxc4 {[%clk 0:00:20.8]} 36. Qxa6 {[%clk
0:00:20.4]} 36... Rc1+ {[%clk 0:00:17.5]} 37. Kg2 {[%clk 0:00:20.1]} 37... Nf5
{[%clk 0:00:17.4]} 38. Qa8+ {[%clk 0:00:18.1]} 38... Kf7 {[%clk 0:00:17.4]} 39.
Be4 {[%clk 0:00:16.4]} 39... Re1 {[%clk 0:00:16.1]} 40. Qb7 {[%clk 0:00:14]}
40... Ke8 {[%clk 0:00:14.7]} 41. Qb8+ {[%clk 0:00:12.9]} 41... Kf7 {[%clk
0:00:14.4]} 42. Qb7 {[%clk 0:00:12.9]} 42... Ke8 {[%clk 0:00:14.7]} 43. Bc6
{[%clk 0:00:13]} 43... Bxc6+ {[%clk 0:00:13.5]} 44. Qxc6+ {[%clk 0:00:13.9]}
44... Kf7 {[%clk 0:00:13.5]} 45. Qb7+ {[%clk 0:00:12]} 45... Ne7 {[%clk
0:00:13.8]} 46. Qf3+ {[%clk 0:00:11.3]} 46... Nf5 {[%clk 0:00:13.4]} 47. Qa8
{[%clk 0:00:11.1]} 47... Ne7 {[%clk 0:00:13.6]} 48. Qh8 {[%clk 0:00:10.5]} 48...
Re4 {[%clk 0:00:10.1]} 49. Qf6+ {[%clk 0:00:09.6]} 49... Ke8 {[%clk 0:00:09.9]}
50. Qxe6 {[%clk 0:00:09.6]} 50... Rf4 {[%clk 0:00:08.7]} 51. Qd6 {[%clk
0:00:07.8]} 51... Rf5 {[%clk 0:00:07.1]} 52. e6 {[%clk 0:00:07.5]} 52... Rxg5+
{[%clk 0:00:07.1]} 53. Kh2 {[%clk 0:00:08]} 53... Rf5 {[%clk 0:00:06.3]} 54.
Qd7+ {[%clk 0:00:07.4]} 54... Kf8 {[%clk 0:00:06.9]} 55. Qd8+ {[%clk 0:00:07.6]}
55... Kg7 {[%clk 0:00:06.5]} 56. Qxe7+ {[%clk 0:00:08.5]} 56... Kh6 {[%clk
0:00:07]} 57. Qd8 {[%clk 0:00:08.3]} 1-0

[Event "*** Titled Tuesday Blitz"]
[Site "Chess.com"]
[Date "2021.04.27"]
[Round "6"]
[White "MarcoRiehle"]
[Black "VerdeNotte"]
[Result "0-1"]
[WhiteElo "2710"]
[BlackElo "2895"]
[TimeControl "180+1"]
[EndTime "11:07:32 PDT"]
[Termination "VerdeNotte won on time"]

1. e4 {[%clk 0:03:00.9]} 1... e5 {[%clk 0:02:59.6]} 2. Nf3 {[%clk 0:03:00.8]}
2... Nc6 {[%clk 0:03:00]} 3. Bc4 {[%clk 0:02:58.7]} 3... Nf6 {[%clk 0:02:58.3]}
4. d4 {[%clk 0:02:58.7]} 4... exd4 {[%clk 0:02:57.5]} 5. O-O {[%clk 0:02:59.2]}
5... Nxe4 {[%clk 0:02:56.9]} 6. Nc3 {[%clk 0:02:58.7]} 6... Nxc3 {[%clk
0:02:52.7]} 7. bxc3 {[%clk 0:02:57.6]} 7... d5 {[%clk 0:02:52.6]} 8. Bd3 {[%clk
0:02:56.7]} 8... Be7 {[%clk 0:02:49.3]} 9. cxd4 {[%clk 0:02:56]} 9... Bg4 {[%clk
0:02:47]} 10. c3 {[%clk 0:02:46.2]} 10... O-O {[%clk 0:02:44.1]} 11. Re1 {[%clk
0:02:46.3]} 11... Re8 {[%clk 0:02:43.7]} 12. Bf4 {[%clk 0:02:45.3]} 12... Qd7
{[%clk 0:02:39.9]} 13. Re3 {[%clk 0:02:41.3]} 13... Bd6 {[%clk 0:02:37.5]} 14.
Bxd6 {[%clk 0:02:35]} 14... Rxe3 {[%clk 0:02:34.5]} 15. fxe3 {[%clk 0:02:34.3]}
15... Bxf3 {[%clk 0:02:30.4]} 16. Qxf3 {[%clk 0:02:26.2]} 16... Qxd6 {[%clk
0:02:30.7]} 17. Rf1 {[%clk 0:02:17.4]} 17... Qe7 {[%clk 0:02:19.3]} 18. Qxd5
{[%clk 0:02:07.5]} 18... Qxe3+ {[%clk 0:02:07]} 19. Kh1 {[%clk 0:02:07.5]} 19...
Qe6 {[%clk 0:01:43.8]} 20. Qh5 {[%clk 0:01:56.4]} 20... g6 {[%clk 0:01:43.6]}
21. Qf3 {[%clk 0:01:46.9]} 21... Rd8 {[%clk 0:01:40.5]} 22. a4 {[%clk
0:01:32.1]} 22... Kg7 {[%clk 0:01:34.4]} 23. h3 {[%clk 0:01:31.7]} 23... Rd6
{[%clk 0:01:27.5]} 24. Be4 {[%clk 0:01:14.4]} 24... Qe7 {[%clk 0:01:24.7]} 25.
Rb1 {[%clk 0:01:10.6]} 25... Rf6 {[%clk 0:01:17.7]} 26. Qd3 {[%clk 0:01:08.7]}
26... Re6 {[%clk 0:01:14.6]} 27. Bxc6 {[%clk 0:01:02.6]} 27... bxc6 {[%clk
0:01:11.4]} 28. Qg3 {[%clk 0:00:58.3]} 28... Re3 {[%clk 0:01:09]} 29. Qf2 {[%clk
0:00:56.3]} 29... Rxc3 {[%clk 0:01:01.4]} 30. d5 {[%clk 0:00:56.7]} 30... cxd5
{[%clk 0:00:58]} 31. Qxa7 {[%clk 0:00:56.6]} 31... Qe3 {[%clk 0:00:54.5]} 32.
Qb8 {[%clk 0:00:38.4]} 32... Qe4 {[%clk 0:00:46]} 33. Kh2 {[%clk 0:00:25]} 33...
Qxa4 {[%clk 0:00:40.6]} 34. Qb2 {[%clk 0:00:22.9]} 34... Qf4+ {[%clk 0:00:39.6]}
35. Kh1 {[%clk 0:00:21.7]} 35... d4 {[%clk 0:00:39]} 36. Rg1 {[%clk 0:00:20.3]}
36... Qe4 {[%clk 0:00:35.7]} 37. Kh2 {[%clk 0:00:20.7]} 37... c5 {[%clk
0:00:26.8]} 38. Qb8 {[%clk 0:00:19.8]} 38... Rc2 {[%clk 0:00:23.5]} 39. Qd8
{[%clk 0:00:19]} 39... d3 {[%clk 0:00:20.8]} 40. Qg5 {[%clk 0:00:17.1]} 40... c4
{[%clk 0:00:20.6]} 41. Rf1 {[%clk 0:00:16.6]} 41... Qe6 {[%clk 0:00:15.1]} 42.
Qf4 {[%clk 0:00:14.7]} 42... h5 {[%clk 0:00:13.6]} 43. Qd4+ {[%clk 0:00:14.6]}
43... Kh7 {[%clk 0:00:13.6]} 44. Rf6 {[%clk 0:00:14.7]} 44... Qe7 {[%clk
0:00:12.4]} 45. Qf4 {[%clk 0:00:13.3]} 45... Kg7 {[%clk 0:00:11.3]} 46. Rc6
{[%clk 0:00:13.9]} 46... Re2 {[%clk 0:00:05.9]} 47. Rc7 {[%clk 0:00:09]} 47...
Qe6 {[%clk 0:00:04]} 48. h4 {[%clk 0:00:07.1]} 48... d2 {[%clk 0:00:03.8]} 49.
Kg3 {[%clk 0:00:02.4]} 49... d1=Q {[%clk 0:00:03.8]} 50. Re7 {[%clk 0:00:02.6]}
50... Qd3+ {[%clk 0:00:03.7]} 51. Kh2 {[%clk 0:00:01.8]} 51... Qxe7 {[%clk
0:00:03.8]} 52. Qg3 {[%clk 0:00:01.9]} 52... Qxg3+ {[%clk 0:00:03.6]} 53. Kh1
{[%clk 0:00:02.1]} 53... Qe4 {[%clk 0:00:04.5]} 0-1

[Event "*** Titled Tuesday Blitz"]
[Site "Chess.com"]
[Date "2021.04.27"]
[Round "6"]
[White "gmpeter008"]
[Black "OK97"]
[Result "1/2-1/2"]
[WhiteElo "2466"]
[BlackElo "2742"]
[TimeControl "180+1"]
[EndTime "11:07:32 PDT"]
[Termination "Game drawn by repetition"]

1. d4 {[%clk 0:03:00.9]} 1... g6 {[%clk 0:02:59.7]} 2. c4 {[%clk 0:02:54.7]}
2... Bg7 {[%clk 0:02:59.6]} 3. Nf3 {[%clk 0:02:54.7]} 3... d6 {[%clk 0:02:58.3]}
4. g3 {[%clk 0:02:55.1]} 4... Bd7 {[%clk 0:02:54.3]} 5. Bg2 {[%clk 0:02:55.4]}
5... Qc8 {[%clk 0:02:54.7]} 6. h4 {[%clk 0:02:52.6]} 6... Nf6 {[%clk 0:02:52.1]}
7. Nc3 {[%clk 0:02:52.7]} 7... Nc6 {[%clk 0:02:40.1]} 8. Bg5 {[%clk 0:02:51.6]}
8... h6 {[%clk 0:02:34.3]} 9. Bxf6 {[%clk 0:02:51.1]} 9... Bxf6 {[%clk
0:02:35.2]} 10. Qd2 {[%clk 0:02:50.1]} 10... h5 {[%clk 0:02:28.4]} 11. e3 {[%clk
0:02:45.4]} 11... a6 {[%clk 0:02:19]} 12. Nd5 {[%clk 0:02:38]} 12... Bg7 {[%clk
0:02:18.3]} 13. O-O {[%clk 0:02:25.4]} 13... O-O {[%clk 0:02:12.8]} 14. b4
{[%clk 0:02:22.5]} 14... e6 {[%clk 0:02:11.1]} 15. Nf4 {[%clk 0:02:22.6]} 15...
Ne7 {[%clk 0:01:48.7]} 16. a4 {[%clk 0:02:21.9]} 16... e5 {[%clk 0:01:41.2]} 17.
dxe5 {[%clk 0:01:43.3]} 17... dxe5 {[%clk 0:01:42.1]} 18. Nd5 {[%clk 0:01:35.5]}
18... Nxd5 {[%clk 0:01:31.7]} 19. cxd5 {[%clk 0:01:34.7]} 19... Bg4 {[%clk
0:01:12.3]} 20. Rac1 {[%clk 0:01:26.3]} 20... Qd7 {[%clk 0:01:12.4]} 21. e4
{[%clk 0:01:22.1]} 21... Rac8 {[%clk 0:00:53.2]} 22. Qa2 {[%clk 0:01:15.3]}
22... c6 {[%clk 0:00:49]} 23. Ng5 {[%clk 0:01:11.8]} 23... cxd5 {[%clk
0:00:43.6]} 24. exd5 {[%clk 0:01:12.1]} 24... Bh6 {[%clk 0:00:38.9]} 25. Ne4
{[%clk 0:01:06]} 25... Kg7 {[%clk 0:00:30.8]} 26. Rxc8 {[%clk 0:00:56.7]} 26...
Rxc8 {[%clk 0:00:30.9]} 27. Qa1 {[%clk 0:00:55.8]} 27... Qxd5 {[%clk 0:00:22.8]}
28. Nc5 {[%clk 0:00:45.9]} 28... Qd4 {[%clk 0:00:21.8]} 29. Bxb7 {[%clk
0:00:44.3]} 29... Rb8 {[%clk 0:00:17.8]} 30. Qxd4 {[%clk 0:00:29.1]} 30... exd4
{[%clk 0:00:18.7]} 31. Bxa6 {[%clk 0:00:18]} 31... Rxb4 {[%clk 0:00:17.9]} 32.
Bb5 {[%clk 0:00:18.5]} 32... Bf3 {[%clk 0:00:14.8]} 33. Nd3 {[%clk 0:00:17.7]}
33... Rb3 {[%clk 0:00:11.7]} 34. Ne5 {[%clk 0:00:14.6]} 34... Bd5 {[%clk
0:00:09.8]} 35. Rd1 {[%clk 0:00:14.3]} 35... f6 {[%clk 0:00:05.5]} 36. Rxd4
{[%clk 0:00:10.5]} 36... Rb1+ {[%clk 0:00:04.1]} 37. Bf1 {[%clk 0:00:10.7]}
37... Be6 {[%clk 0:00:02.8]} 38. Nf3 {[%clk 0:00:07.9]} 38... Bh3 {[%clk
0:00:03.1]} 39. Nh2 {[%clk 0:00:08.1]} 39... Ra1 {[%clk 0:00:03.5]} 40. a5
{[%clk 0:00:07.8]} 40... Bxf1 {[%clk 0:00:02.9]} 41. Nxf1 {[%clk 0:00:07.7]}
41... Rxa5 {[%clk 0:00:03.8]} 42. Rd7+ {[%clk 0:00:08]} 42... Kg8 {[%clk
0:00:03.9]} 43. Kg2 {[%clk 0:00:08.4]} 43... Re5 {[%clk 0:00:04]} 44. Rd6 {[%clk
0:00:08.5]} 44... Kf7 {[%clk 0:00:04]} 45. Rd7+ {[%clk 0:00:08.9]} 45... Ke6
{[%clk 0:00:04.1]} 46. Rd1 {[%clk 0:00:08.9]} 46... Kf7 {[%clk 0:00:03.4]} 47.
Kf3 {[%clk 0:00:09.2]} 47... Rf5+ {[%clk 0:00:03.6]} 48. Kg2 {[%clk 0:00:09.3]}
48... Re5 {[%clk 0:00:04.5]} 49. Rd3 {[%clk 0:00:09]} 49... Re2 {[%clk
0:00:04.3]} 50. Kf3 {[%clk 0:00:08.2]} 50... Re1 {[%clk 0:00:04.8]} 51. Ne3
{[%clk 0:00:07.1]} 51... Bxe3 {[%clk 0:00:05.1]} 52. Rxe3 {[%clk 0:00:06.7]}
52... Ra1 {[%clk 0:00:05.3]} 53. Kg2 {[%clk 0:00:06.9]} 53... Ra4 {[%clk
0:00:05.6]} 54. Rf3 {[%clk 0:00:07.8]} 54... Rb4 {[%clk 0:00:05.7]} 55. Re3
{[%clk 0:00:08.7]} 55... Ra4 {[%clk 0:00:06.1]} 56. Rf3 {[%clk 0:00:09.6]} 56...
Rb4 {[%clk 0:00:06.6]} 57. Re3 {[%clk 0:00:10.5]} 57... Ra4 {[%clk 0:00:07]}
1/2-1/2